[Event "Czech Open-Rapid 2022"]
[Site "Pardubice"]
[Date "2022.07.20"]
[Round "2.38"]
[White "Zdrazil, Tomas"]
[Black "Koska, Jiri"]
[Result "0-1"]
[ECO "B12"]
[WhiteElo "2122"]
[BlackElo "1856"]
[Annotator "TA"]
[PlyCount "56"]
[EventDate "2022.07.20"]
[EventType "swiss"]
[EventCountry "CZE"]
[SourceTitle "playchess.com"]
[Source "ChessBase"]
[SourceQuality "1"]
[TimeControl "1200+10"]

{[%evp 9,56,0,12,7,10,15,10,7,29,27,29,32,44,38,51,-6,-8,-15,0,0,-15,0,0,-91,-93,-153,-66,-62,-68,-66,-29,-20,-26,-66,-10,-14,-10,-10,-10,-10,-16,-35,-26,-52,-53,-111,-109,-110,-110]} 1. e4 {[%emt 0:00:03]} c6 {[%emt 0:00:03]} 2. d4 {[%emt 0:00:02]} d5 {[%emt 0:00:26]} 3. e5 {[%emt 0:00:01]} c5 {[%emt 0:00:02]} 4. dxc5 {[%emt 0:00:06]} e6 {[%emt 0:00:01]} 5. a3 {[%emt 0:00:18]} Bxc5 {[%emt 0:00:02]} 6. Nf3 {[%emt 0:00:03] B12: Caro-Kann: Advance Variation.} Ne7 {[%emt 0:00:09]} 7. Bd3 {[%emt 0:00:04]} Ng6 {[%emt 0:00:04]} 8. O-O {[%emt 0:00:15] The position is equal.} Nc6 {[%emt 0:00:03]} 9. b4 {[%emt 0:00:20] Black must now prevent Bxg6.} Bb6 {[%emt 0:00:10]} 10. Bb2 {[%emt 0:00:25]} O-O {[%emt 0:00:22]} 11. g3 {[%emt 0:05:47]} f6 {[%emt 0:03:01]} 12. Bxg6 {[%emt 0:02:29]} ({Better is} 12. exf6 $14 gxf6 13. Nbd2) 12... hxg6 $11 {[%emt 0:00:01]} 13. Nbd2 {[%emt 0:01:24] [#]} fxe5 $146 {[%emt 0:01:03]} ({Predecessor:} 13... Qc7 14. c4 Qf7 15. Qe2 g5 16. h3 Qh5 17. Kg2 Bc7 18. Rae1 b6 19. Qd3 fxe5 20. Nxe5 Bxe5 21. g4 Qf7 22. Bxe5 Bb7 {½-½ (22) Heinemann,J (2225)-Stolle,V (2190) Baden 2018}) 14. Nxe5 {[%emt 0:00:44]} Nxe5 {[%emt 0:02:35]} 15. Bxe5 {[%emt 0:00:02]} Qg5 {[%emt 0:01:09]} 16. Bb2 {[%emt 0:03:39] [#]} (16. Bd6 $11 {keeps the balance.}) 16... Qf5 $1 $17 {[%emt 0:01:08] Hoping for ...Bd7. Black is more active.} 17. Qe2 {[%emt 0:04:51] [#]} (17. c4 $142) 17... Qxc2 {[%emt 0:05:59]} (17... Bd7 $1 $17 {aiming for ...Rac8.} 18. Rac1 Rac8) 18. Qe5 $15 {[%emt 0:01:47][%csl Gb2][%cal Re5g7]} Rf7 {[%emt 0:00:01]} 19. Nf3 {[%emt 0:00:04]} Qf5 {[%emt 0:00:02]} 20. Qxf5 {[%emt 0:00:48]} gxf5 {[%emt 0:00:09]} 21. Rfe1 {[%emt 0:00:05]} Bd7 {[%emt 0:01:11]} (21... Rc7 $15) 22. Ne5 $11 {[%emt 0:00:02]} Re7 {[%emt 0:00:16]} 23. Nxd7 {[%emt 0:00:03]} Rxd7 {[%emt 0:00:01]} 24. Rxe6 {[%emt 0:00:01]} d4 {[%emt 0:00:07][%cal Bd5d4,Bd4d3][%mdl 32]} 25. Rd1 {[%emt 0:00:24]} d3 {[%emt 0:00:07]} 26. Rd2 {[%emt 0:00:31]} Rc8 {[%emt 0:00:02] Strongly threatening ...Rc2.} 27. Re1 {[%emt 0:00:04]} ({White should try} 27. Kg2 $1 $15) 27... Rc2 $17 {[%emt 0:03:13]} 28. Red1 {[%emt 0:00:02] And now Rxc2 would win.} Re7 {[%emt 0:00:02] Weighted Error Value: White=0.18 (very precise) /Black=0.12 (very precise)} 0-1

[Event "Czech Open-Rapid 2022"]
[Site "Pardubice"]
[Date "2022.07.20"]
[Round "2.39"]
[White "Koupil, Stepan"]
[Black "Bertram, Karsten"]
[Result "0-1"]
[ECO "B01"]
[WhiteElo "1450"]
[BlackElo "2062"]
[Annotator "TA"]
[PlyCount "30"]
[EventDate "2022.07.20"]
[EventType "swiss"]
[EventCountry "CZE"]
[SourceTitle "playchess.com"]
[Source "ChessBase"]
[SourceQuality "1"]
[TimeControl "1200+10"]

{[%evp 12,30,32,21,45,46,45,0,21,6,16,-122,-135,-186,-192,-195,-192,-667,-651,-646,-593]} 1. e4 {[%emt 0:00:03]} d5 {[%emt 0:00:01]} 2. exd5 Qxd5 3. Nc3 {[%emt 0:00:17]} Qa5 {[%emt 0:00:12]} 4. Bc4 {[%emt 0:00:42]} Nf6 {[%emt 0:00:02]} 5. Nf3 {[%emt 0:00:12]} Bg4 {[%emt 0:00:42]} 6. h3 {[%emt 0:00:13]} Bh5 {[%emt 0:00:04]} 7. O-O {[%emt 0:00:37]} Nc6 {[%emt 0:00:03][%cal Bb8c6,Bc6d4,Bd4b5,Bb5d6][%mdl 32] B01: Scandinavian Defence.} 8. Bb5 {[%emt 0:00:37]} e6 {[%emt 0:02:58]} 9. d4 {[%emt 0:01:48] g4 is the strong threat.} (9. g4 $5 {[%cal Rg4h5]} Bg6 10. d3 $14) 9... Bb4 {[%emt 0:01:38] The position is equal.} 10. Qd3 {[%emt 0:02:20] With the idea Ne5.} O-O {[%emt 0:02:54] [#]} 11. a3 $146 {[%emt 0:01:30]} (11. Bxc6 $11 bxc6 12. Ne5) ({Predecessor:} 11. Bxc6 bxc6 12. Ne4 Nxe4 13. Qxe4 Qd5 14. Qxd5 cxd5 15. c3 Bd6 16. Ne5 f6 17. Nc6 {0-1 (41) Nesic,D (1842)-Cornette,D (2364) Rhodes 2013}) 11... Bxf3 $17 {[%emt 0:02:06]} 12. Qxf3 {[%emt 0:01:36]} (12. gxf3 $17 Bxc3 13. bxc3) 12... Nxd4 $19 {[%emt 0:00:17]} 13. Qd3 {[%emt 0:01:36][%cal Oa3b4]} Bxc3 {[%emt 0:00:25]} 14. Be3 $2 {[%emt 0:00:53] [#]} (14. Bc4) 14... Nxb5 {[%emt 0:00:28]} 15. bxc3 Nd6 {[%emt 0:00:36] Black took control after the opening.  Weighted Error Value: White=0.95/Black=0.03 (flawless)} 0-1

[Event "Czech Open-Rapid 2022"]
[Site "Pardubice"]
[Date "2022.07.20"]
[Round "2.40"]
[White "Valenta, Vit Vaclav"]
[Black "Hornstein, Leonhard"]
[Result "1-0"]
[ECO "A00"]
[WhiteElo "1996"]
[BlackElo "1210"]
[Annotator "TA"]
[PlyCount "63"]
[EventDate "2022.07.20"]
[EventType "swiss"]
[EventCountry "CZE"]
[SourceTitle "playchess.com"]
[Source "ChessBase"]
[SourceQuality "1"]
[TimeControl "1200+10"]

{[%evp 9,63,-2,6,-4,17,1,22,-2,26,22,81,72,69,69,127,104,93,90,84,89,96,108,185,189,179,167,157,159,186,181,194,178,186,122,222,222,231,198,204,200,178,168,198,165,164,131,404,400,400,389,641,627,628,637,635,629]} 1. b4 {[%emt 0:00:01]} d5 {[%emt 0:00:04]} 2. Bb2 {[%emt 0:00:02]} f5 {[%emt 0:00:02]} 3. Nf3 {[%emt 0:00:07]} e6 {[%emt 0:00:02]} 4. a3 {[%emt 0:00:02]} Nf6 {[%emt 0:00:01]} 5. g3 {[%emt 0:00:05]} Be7 {[%emt 0:00:02]} 6. Bg2 {[%emt 0:00:01] A00: Irregular Openings.} c6 {[%emt 0:00:00]} 7. O-O {[%emt 0:00:03][%cal Oc2c4]} O-O {[%emt 0:00:07]} 8. d3 {[%emt 0:00:04] [#] The position is equal.} (8. c4 $5) 8... Bd7 $146 {[%emt 0:00:32]} ({Predecessor:} 8... a5 9. bxa5 Qxa5 10. Nbd2 Qa4 11. c4 Nbd7 12. Qc1 Nc5 13. d4 Nce4 14. c5 Nd7 15. Nxe4 fxe4 {0-1 (26) Jeschke,H-Wiechmann,G Kropp 2006}) 9. Nbd2 {[%emt 0:00:05]} Be8 {[%emt 0:00:02]} (9... a5 $11) 10. c4 {[%emt 0:00:51]} Bh5 {[%emt 0:00:21]} 11. Qc2 {[%emt 0:00:12]} Nbd7 {[%emt 0:00:24]} (11... a5 $14) 12. Nd4 {[%emt 0:00:18]} Bf7 {[%emt 0:00:41]} 13. e4 {[%emt 0:00:30] White is more active.} fxe4 {[%emt 0:00:05]} 14. dxe4 {[%emt 0:00:03][%cal Bd3e4,Be4d5,Bd5d6][%mdl 32]} e5 {[%emt 0:00:30]} 15. Nf5 {[%emt 0:00:03]} Bg6 {[%emt 0:00:34]} (15... d4 $16) 16. cxd5 $18 {[%emt 0:00:34]} (16. exd5 cxd5 17. cxd5 Kh8 $16) 16... cxd5 {[%emt 0:00:12]} 17. Nxe7+ {[%emt 0:00:07]} ({Don't take} 17. exd5 Kh8 $16) 17... Qxe7 {[%emt 0:00:04]} 18. Qb3 {[%emt 0:00:01]} Kh8 {[%emt 0:00:12][%cal Rd5e4]} 19. exd5 {[%emt 0:00:10]} Rac8 {[%emt 0:00:25]} 20. Nc4 {[%emt 0:01:03]} e4 {[%emt 0:00:28]} 21. Bh3 {[%emt 0:01:16]} (21. Rad1 $18) 21... Rcd8 {[%emt 0:00:44]} (21... Nxd5 $16 {keeps fighting.} 22. Rac1 Rcd8) 22. d6 {[%emt 0:01:45]} Qf7 {[%emt 0:00:15]} 23. Nd2 {[%emt 0:00:32][%cal Bc4d2,Bd2b3,Bb3c5][%mdl 32]} Nb6 24. Qxf7 {[%emt 0:00:53]} Rxf7 {[%emt 0:00:48]} 25. Be5 {[%emt 0:00:06] A strong pair of Bishops.} Ne8 {[%emt 0:01:01]} 26. Rad1 {[%emt 0:00:54] Be6 is the strong threat.} ({But not} 26. Be6 $6 Rf8 $16) 26... Nxd6 {[%emt 0:00:21]} 27. Nb3 $40 {[%emt 0:00:10][%mdl 128] White goes for the king.} Nbc8 {[%emt 0:00:12][%mdl 8192] Loses the game.} (27... Nbc4 $16 28. Bxd6 Nxd6) 28. Bxc8 {[%emt 0:00:15]} Rxc8 {[%emt 0:00:04]} 29. Rxd6 {[%emt 0:00:09]} Rfc7 $2 {[%emt 0:00:19] [#]} (29... Re7 30. Bf4 Kg8) 30. Rxg6 $1 {[%emt 0:00:30] White is clearly winning.} hxg6 {[%emt 0:00:03]} 31. Bxc7 {[%emt 0:00:02]} Rxc7 {[%emt 0:00:02]} 32. Nc5 {[%emt 0:00:01] Weighted Error Value: White=0.11 (very precise) /Black=0.50} 1-0

[Event "Czech Open-Rapid 2022"]
[Site "Pardubice"]
[Date "2022.07.20"]
[Round "2.41"]
[White "Hintze, Lobosch"]
[Black "Meszaros, Ludek"]
[Result "0-1"]
[ECO "C68"]
[WhiteElo "1560"]
[BlackElo "2049"]
[Annotator "TA"]
[PlyCount "128"]
[EventDate "2022.07.20"]
[EventType "swiss"]
[EventCountry "CZE"]
[SourceTitle "playchess.com"]
[Source "ChessBase"]
[SourceQuality "1"]
[TimeControl "1200+10"]

{[%evp 9,128,10,33,-61,14,-24,-2,-40,-37,-55,-48,-52,-47,-67,40,28,50,0,121,-9,-31,-62,-85,-76,-56,-74,-70,-164,-137,-200,-190,-369,-309,-364,-358,-777,10,22,28,21,93,87,102,102,211,216,193,104,107,115,122,22,51,11,50,0,0,0,9,5,5,0,0,-360,-350,-356,-357,-357,-349,-379,-378,-490,-487,-456,-381,-465,-466,-577,-503,-566,-496,-881,-843,-1818,-1709,-1522,-1352,-1114,-1140,-12833,-12834,-12835,-5716,-12799,-1010,-1498,-766,-708,-712,-690,-652,-668,-659,-12828,-12810,-4778,-1176,-695,-370,-12827,-12825,-5481,-490,-12832,-12832,-12825,-11455,-1289,-1002,-27999,-27999]} 1. e4 {[%emt 0:00:02]} e5 {[%emt 0:00:02]} 2. Nf3 {[%emt 0:00:01]} Nc6 {[%emt 0:00:01]} 3. Bb5 {[%emt 0:00:01]} a6 {[%emt 0:00:01]} 4. Bxc6 {[%emt 0:00:01]} dxc6 {[%emt 0:00:02]} 5. O-O {[%emt 0:00:03]} f6 {[%emt 0:00:14]} 6. c3 {[%emt 0:00:10] C69: Ruy Lopez: Exchange Variation with 5 0-0 f6.} (6. d4 $14) 6... Bg4 {[%emt 0:00:20]} ({Better is} 6... Qd3 $15) 7. d3 {[%emt 0:00:32]} Qd6 {[%emt 0:00:18]} 8. Be3 {[%emt 0:00:33] The position is equal.} O-O-O {[%emt 0:00:34]} 9. d4 {[%emt 0:00:28]} c5 {[%emt 0:00:34]} 10. d5 {[%emt 0:01:15]} f5 $1 {[%emt 0:01:13] [#]} 11. Nbd2 $146 {[%emt 0:02:17]} ({Predecessor:} 11. exf5 e4 12. Qa4 Bxf3 13. gxf3 exf3 14. Qg4 Nf6 15. Qxf3 Qxd5 16. Qxd5 Rxd5 17. c4 Rxf5 {0-1 (39) Boudriga,M (2325)-Amin,B (2692) Casablanca 2019}) 11... f4 {[%emt 0:00:54]} (11... Nf6 $15 12. Nc4 Qe7) 12. Nc4 $1 $14 {[%emt 0:01:02][%csl LRd6,LRe5] Pair of Knights!} Qf6 {[%emt 0:00:49]} 13. Bd2 {[%emt 0:00:45]} (13. Ncxe5 Bxf3 14. Qxf3 Qxe5 $15) ({White should play} 13. Bc1 $1 $14) 13... Bd6 {[%emt 0:00:14]} (13... Re8 $1 $11) 14. Na5 {[%emt 0:01:47]} (14. b4 $1 $16) 14... Qg6 $11 {[%emt 0:00:44]} 15. Nh4 {[%emt 0:02:33]} Qh5 {[%emt 0:00:51]} (15... Bxd1 16. Nxg6 hxg6 17. Rfxd1 $14) 16. f3 {[%emt 0:00:03][%cal Od1b3]} Qxh4 {[%emt 0:00:14]} 17. fxg4 {[%emt 0:00:06]} Nf6 {[%emt 0:00:08] And now ...h5 would win.} 18. h3 {[%emt 0:00:42] [#]} (18. Qb3 $15 b6 19. Nc6) 18... h5 $1 $19 {[%emt 0:00:45][%cal Rh5g4]} (18... Nxe4 19. Be1 Ng3 20. Qb3 $15) 19. gxh5 {[%emt 0:00:23]} (19. g5 $17 {was called for.} Nxe4 20. Be1 Qxg5 21. Qb3) 19... Rxh5 {[%emt 0:00:33]} ({Weaker is} 19... Nxe4 20. Qc2 Nxd2 21. Qxd2) 20. Qf3 $2 {[%emt 0:00:37]} (20. Be1 {is a better defense.} Qg5 21. Rf3) 20... Rg5 {[%emt 0:00:10] aiming for ...Rh8.} 21. Be1 {[%emt 0:00:10]} Qh7 {[%emt 0:00:36]} 22. Bf2 $2 (22. h4 Rg4 23. a4) 22... Qxe4 $2 {[%emt 0:00:26]} ({Black should try} 22... Nxe4 $19 23. Bh4 Qxh4 24. Qxe4 Qxh3) 23. Qxe4 $11 {[%emt 0:01:05]} Nxe4 {[%emt 0:00:01]} 24. Bh4 {[%emt 0:00:14]} Re8 {[%emt 0:04:41]} 25. Bxg5 $16 {[%emt 0:00:25]} Nxg5 {[%emt 0:00:02] [#]} 26. Rae1 $1 {[%emt 0:00:13] Against Ne4} Kd7 {[%emt 0:00:24]} (26... Rh8 $16) 27. Nxb7 $18 {[%emt 0:00:28]} Nh7 {[%emt 0:00:38][%cal Bg5h7,Bh7f6,Bf6d5][%mdl 32]} 28. Na5 {[%emt 0:01:58]} (28. g3 $18) 28... Nf6 $16 {[%emt 0:00:12]} 29. Nc4 {[%emt 0:00:09][%cal Og2g3]} Nxd5 {[%emt 0:00:34]} 30. Rd1 {[%emt 0:00:37]} (30. h4 $16) 30... Nf6 {[%emt 0:01:37]} 31. Rfe1 {[%emt 0:00:47] Nxe5+ is the strong threat.} e4 {[%emt 0:00:15]} 32. Kf2 {[%emt 0:00:53]} (32. Rf1 $1 $14) 32... g5 $11 {[%emt 0:00:05]} 33. a3 {[%emt 0:01:10]} g4 {[%emt 0:00:08]} 34. hxg4 {[%emt 0:00:50]} Nxg4+ {[%emt 0:00:02]} 35. Kf1 {[%emt 0:00:15]} Rh8 {[%emt 0:00:31] Strongly threatening ...f3.} 36. Rxe4 $2 {[%emt 0:01:44][%mdl 8192] White is now going downhill.} (36. Nxd6 $11 {and White has nothing to worry.} cxd6 37. Rxe4 Rh1+ 38. Ke2 Rxd1 39. Rxf4) 36... Rh1+ $19 {[%emt 0:00:01]} 37. Ke2 {[%emt 0:00:01]} Rxd1 {[%emt 0:00:02]} 38. Nxd6 {[%emt 0:00:24]} Rxd6 {[%emt 0:00:25]} ({Not} 38... cxd6 39. Rxf4 Rb1 40. Rxg4 $11) 39. Rxf4 {[%emt 0:00:03][%mdl 4096] Endgame KRN-KR} Ne5 {[%emt 0:00:11]} 40. Rh4 {[%emt 0:00:13]} Rg6 {[%emt 0:00:14]} 41. Kf1 {[%emt 0:00:14]} Nd3 {[%emt 0:00:28]} 42. b4 {[%emt 0:00:08]} Re6 {[%emt 0:00:17][%csl Gd3][%cal Re6e1]} 43. Kg1 {[%emt 0:00:09]} Re1+ {[%emt 0:00:12]} 44. Kh2 {[%emt 0:00:01]} Ra1 {[%emt 0:00:13]} 45. bxc5 {[%emt 0:00:04]} (45. Rh3 $142 Nf2 46. Rf3) 45... Nxc5 {[%emt 0:00:03]} 46. Rh7+ {[%emt 0:00:08]} Kc6 {[%emt 0:00:03]} 47. Rh6+ {[%emt 0:00:02]} Kb7 {[%emt 0:00:01]} 48. Rh5 {[%emt 0:00:01]} Ne4 {[%emt 0:00:21]} 49. g4 {[%emt 0:00:15]} Rxa3 {[%emt 0:00:10]} 50. Re5 {[%emt 0:00:07]} Nxc3 {[%emt 0:00:07]} 51. g5 {[%emt 0:00:01]} Ra2+ {[%emt 0:00:12]} 52. Kh3 {[%emt 0:00:20]} Ne2 {[%emt 0:00:24]} 53. Re4 {[%emt 0:00:22]} Ra3+ {[%emt 0:00:32]} 54. Kh4 {[%emt 0:00:13]} Nc3 {[%emt 0:00:32]} 55. Rc4 {[%emt 0:00:19]} Nd5 {[%emt 0:00:11] Threatens to win with ...Ra1.} 56. g6 {[%emt 0:00:12]} Ra1 {[%emt 0:00:12]} 57. Rg4 {[%emt 0:00:44]} Rh1+ {[%emt 0:01:11]} 58. Kg5 {[%emt 0:00:23]} Rh8 {Hoping for ...Rg8.} 59. Rd4 $2 {[%emt 0:00:22]} (59. g7 Rc8 60. Rh4) 59... Kc6 {[%emt 0:00:50]} 60. Ra4 {[%emt 0:00:20]} Kb6 {[%emt 0:00:16]} (60... Kb5 $142 61. Ra1 Rg8 62. Rb1+ Kc5) 61. Rd4 {[%emt 0:00:03]} (61. g7 $142 Rh3 62. Re4 (62. g8=Q $2 Rg3+ 63. Kf5 Rxg8 $19)) 61... Ne7 {[%emt 0:00:22]} 62. g7 {[%emt 0:00:15]} Rg8 {[%emt 0:00:10]} 63. Kf6 {[%emt 0:00:01] [#]} Rxg7 $3 64. Kxg7 (64. Rb4+ Ka5) 64... Nf5+ {[%emt 0:00:44] Weighted Error Value: White=1.09/Black=0.46} 0-1

[Event "Czech Open-Rapid 2022"]
[Site "Pardubice"]
[Date "2022.07.20"]
[Round "2.42"]
[White "Laith, Kasib"]
[Black "Nikolinko, Tomas"]
[Result "1-0"]
[ECO "B30"]
[WhiteElo "2079"]
[BlackElo "1318"]
[Annotator "TA"]
[PlyCount "33"]
[EventDate "2022.07.20"]
[EventType "swiss"]
[EventCountry "CZE"]
[SourceTitle "playchess.com"]
[Source "ChessBase"]
[SourceQuality "1"]
[TimeControl "1200+10"]

{[%evp 16,32,32,0,11,18,91,46,44,42,227,239,647,652,622,619,960,949,29999]} 1. e4 {[%emt 0:00:09]} c5 {[%emt 0:00:01]} 2. Nf3 {[%emt 0:00:04]} Nc6 {[%emt 0:00:02]} 3. d3 {[%emt 0:00:04]} g6 {[%emt 0:00:02]} 4. g3 {[%emt 0:00:03]} Bg7 {[%emt 0:00:02]} 5. Bg2 {[%emt 0:00:04]} e6 {[%emt 0:00:05]} 6. O-O {[%emt 0:00:04]} Nge7 {[%emt 0:00:02]} 7. c3 {[%emt 0:00:03]} O-O {[%emt 0:00:03]} 8. Re1 {[%emt 0:00:03]} d5 {[%emt 0:00:09]} 9. Nbd2 {[%emt 0:00:19][%cal Bb1d2,Bd2e4,Be4f6][%mdl 32]} Re8 {[%emt 0:00:15] A08: King's Indian Attack.} 10. e5 {[%emt 0:00:33] [#]} d4 $146 {[%emt 0:00:28]} (10... a5 $11) ({Predecessor:} 10... Qc7 11. Qe2 b5 12. Nb3 c4 13. Nbd4 Rb8 14. Nxc6 Nxc6 15. d4 b4 16. h4 a5 17. h5 {1-0 (38) Weber,S (2203)-Gong,P (2336) Helsingor 2019}) 11. c4 {[%emt 0:00:20]} Qc7 {[%emt 0:00:05][%cal Rc6e5] White is slightly better.} 12. Qe2 {[%emt 0:00:07]} Nb4 $2 {[%emt 0:01:56] [#] This move loses the game for Black.} (12... Bd7 $14) 13. Ne4 $18 {[%emt 0:00:58]} Bxe5 $2 {[%emt 0:00:49]} (13... Nec6 14. Bf4 (14. Nxc5 Nxe5 15. Nxe5 Qxc5 $14) 14... Na6 15. Nf6+ Bxf6) 14. Nxe5 {[%emt 0:00:10]} Qxe5 {[%emt 0:00:08]} 15. Bg5 {[%emt 0:00:55] Hoping for Nf6+.} Kf8 {[%emt 0:03:46]} 16. Nf6 {[%emt 0:00:05][%cal Rg5h6][%mdl 64] [#] Discovered Attack, Double Attack} Qxe2 {[%emt 0:00:20]} 17. Bh6# {[%emt 0:00:02] Weighted Error Value: White=0.08 (flawless) /Black=1.92} 1-0

[Event "Czech Open-Rapid 2022"]
[Site "Pardubice"]
[Date "2022.07.20"]
[Round "2.44"]
[White "Mierins, Emils Janis"]
[Black "Seidl, Vaclav"]
[Result "1-0"]
[ECO "C01"]
[WhiteElo "2042"]
[BlackElo "1251"]
[Annotator "TA"]
[PlyCount "109"]
[EventDate "2022.07.20"]
[EventType "swiss"]
[EventCountry "CZE"]
[SourceTitle "playchess.com"]
[Source "ChessBase"]
[SourceQuality "1"]
[TimeControl "1200+10"]

{[%evp 12,109,10,0,54,45,49,53,110,89,84,80,182,176,179,189,191,189,531,527,803,804,783,789,1501,1493,29993,29994,29994,29991,29991,29987,29987,29987,29987,12691,8477,7960,6387,6499,5614,5377,2558,2347,1512,720,687,678,716,715,695,686,669,587,579,322,6303,6307,5336,2455,1758,1537,29965,12810,29968,29973,29978,29979,29979,29980,29980,29981,29982,29983,29983,29984,29984,29985,29986,29987,29987,29988,29988,29989,29989,29990,29990,29991,29991,29992,29994,29993,29995,29996,29996,29997,29997,29998,29998,29999]} 1. e4 {[%emt 0:00:03]} e6 {[%emt 0:00:04]} 2. d4 {[%emt 0:00:02]} d5 {[%emt 0:00:02]} 3. exd5 {[%emt 0:00:02]} exd5 {[%emt 0:00:01]} 4. Nf3 {[%emt 0:00:02]} Bd6 {[%emt 0:00:05]} 5. c4 {[%emt 0:00:02]} c6 {[%emt 0:00:07]} 6. Nc3 {[%emt 0:00:01]} Nf6 {[%emt 0:00:20]} 7. Bg5 {[%emt 0:00:06] 7.Bd3 gains popularity.} Bb4 {[%emt 0:01:15] C01: French: Exchange Variation.} (7... O-O $11) 8. Be2 $14 {[%emt 0:00:06]} O-O {[%emt 0:00:09]} 9. O-O {[%emt 0:00:04] [#]} Bf5 $146 {[%emt 0:00:42]} (9... dxc4 $14 10. Bxc4 h6) ({Predecessor:} 9... dxc4 10. Ne5 Be6 11. Bxc4 Bxc4 12. Nxc4 Be7 13. Qb3 b5 14. Ne3 Qxd4 15. Nf5 Qe5 16. Nxe7+ Qxe7 {1-0 (25) Nilsen,M (2025)-Bentsen,H (2050) Fagernes 2015}) 10. Qb3 {[%emt 0:00:05]} Bxc3 {[%emt 0:01:42]} 11. bxc3 {[%emt 0:00:08]} Qc7 {[%emt 0:01:08]} (11... Nbd7 $16) 12. Bxf6 $18 {[%emt 0:00:10]} gxf6 {[%emt 0:00:02]} 13. cxd5 {[%emt 0:00:04]} cxd5 {[%emt 0:00:46]} 14. Qxd5 {[%emt 0:00:46]} Be6 {[%emt 0:00:07]} (14... Bg6 15. Nh4 Nd7) 15. Qh5 {[%emt 0:00:02] [#] Strongly threatening Bd3.} Qxc3 {[%emt 0:02:52]} 16. Rac1 {[%emt 0:00:03] Prevents Qc2.} Qa3 {[%emt 0:00:17]} 17. Rfd1 {[%emt 0:01:15] Black must now prevent Bd3.} Kh8 {[%emt 0:01:16]} 18. Bd3 {[%emt 0:00:08][%csl Gd3][%cal Rh5h7]} f5 {[%emt 0:00:05]} 19. Ng5 {[%emt 0:00:17][%csl Gg5][%cal Rh5h7]} Kg7 {[%emt 0:00:58]} 20. Qxh7+ {[%emt 0:00:23]} Kf6 {[%emt 0:00:03]} 21. Qh6+ {[%emt 0:00:56]} Ke7 {[%emt 0:00:10]} 22. Nxe6 {[%emt 0:00:35]} fxe6 {[%emt 0:00:04]} 23. Qg7+ {[%emt 0:00:09]} (23. d5 $142 Nd7 24. dxe6 Qxc1 25. Qxc1 Ne5 26. Qc7+ Kf6 27. e7 Rfe8 28. Qd6+ Kf7 29. Qxe5) 23... Rf7 {[%emt 0:00:06]} 24. Rc7+ {[%emt 0:00:02]} Nd7 {[%emt 0:00:17] [#]} 25. Rxd7+ $1 {[%emt 0:00:02][%mdl 512]} Kxd7 {[%emt 0:00:02]} 26. Qxf7+ {[%emt 0:00:01]} Qe7 {[%emt 0:00:08]} 27. Bb5+ {[%emt 0:00:03]} Kd6 {[%emt 0:00:05]} 28. Qxe7+ {[%emt 0:00:33]} Kxe7 {[%emt 0:00:02][%mdl 4096] Endgame KRB-KR} 29. d5 {[%emt 0:00:33][%cal Bd4d5,Bd5d6][%mdl 32]} a6 {[%emt 0:00:05]} 30. d6+ {[%emt 0:00:03]} Kd8 {[%emt 0:00:08]} 31. Bc4 {[%emt 0:00:02]} Kd7 {[%emt 0:00:07]} 32. Re1 {[%emt 0:01:08]} Re8 {[%emt 0:01:29]} 33. Rxe6 {[%emt 0:00:39]} Rxe6 {[%emt 0:00:06]} (33... Rc8 34. Re7+ Kxd6) 34. Bxe6+ {[%emt 0:00:01]} Kxe6 {[%emt 0:00:01] KP-KP} 35. Kf1 {[%emt 0:00:01]} Kxd6 {[%emt 0:00:01]} 36. Ke2 {[%emt 0:00:01]} b5 {[%emt 0:00:01]} 37. Kd3 {[%emt 0:00:02]} (37. g3 $142 Kd5 38. Kd3 Kd6 39. Kd4 Kc6 40. h4 Kd6 41. Kc3 a5 42. Kd4) 37... a5 {[%emt 0:00:05]} 38. Kd4 {[%emt 0:00:03] White mates.} b4 {[%emt 0:00:08]} 39. Kc4 {[%emt 0:00:02]} Ke5 {[%emt 0:00:04]} 40. f3 {[%emt 0:00:39]} f4 {[%emt 0:01:13]} 41. g3 {[%emt 0:00:03]} Kf5 {[%emt 0:00:27]} 42. gxf4 {[%emt 0:00:04]} Kxf4 {[%emt 0:00:01]} 43. Kb5 {[%emt 0:00:01]} Kxf3 {[%emt 0:00:05]} 44. Kxa5 {[%emt 0:00:01]} Kg4 {[%emt 0:00:04]} 45. Kxb4 {[%emt 0:00:01] KP-KP} Kh3 {[%emt 0:00:01]} 46. a4 {[%emt 0:00:02]} Kxh2 {[%emt 0:00:02] KP-K} 47. a5 {[%emt 0:00:00]} Kg3 {[%emt 0:00:01]} 48. a6 {[%emt 0:00:01]} Kf4 {[%emt 0:00:00]} 49. a7 {[%emt 0:00:02]} Ke5 {[%emt 0:00:01]} 50. a8=Q {[%emt 0:00:02]} Kd6 {[%emt 0:00:03]} 51. Qa6+ {[%emt 0:00:04]} Kc7 {[%emt 0:00:01]} 52. Kc5 {[%emt 0:00:03]} Kb8 {[%emt 0:00:05]} 53. Qd6+ {[%emt 0:00:03]} Kc8 {[%emt 0:00:11]} 54. Qe7 {[%emt 0:00:02]} Kb8 {[%emt 0:00:01]} 55. Kb6 {[%emt 0:00:01] Black got outplayed after the opening.  Weighted Error Value: White=0.26 (precise) /Black=0.89} 1-0